[Event "German-ch Blitz Women 2022"]
[Site "Magdeburg"]
[Date "2022.08.13"]
[Round "13.2"]
[White "Heil, Marina"]
[Black "Kosovska, Olena"]
[Result "1-0"]
[ECO "A25"]
[WhiteElo "1926"]
[BlackElo "1831"]
[Annotator "TA"]
[PlyCount "83"]
[EventDate "2022.08.10"]
[EventType "tourn"]
[EventCountry "GER"]
[SourceTitle "playchess.com"]
[Source "ChessBase"]
[SourceQuality "1"]
[TimeControl "180+2"]

{[%evp 9,83,25,27,-12,23,21,41,28,69,54,69,75,74,60,96,85,311,307,305,312,371,362,372,358,395,376,374,345,433,426,475,441,489,409,491,504,576,374,376,366,492,477,554,517,547,538,527,533,641,512,595,587,528,510,470,189,391,398,393,337,339,322,327,0,720,599,712,675,662,395,718,526,1074,140,677,593]} 1. c4 {[%emt 0:00:01]} e5 {[%emt 0:00:01]} 2. Nc3 {[%emt 0:00:01]} Nc6 {[%emt 0:00:01]} 3. g3 {[%emt 0:00:00]} Nf6 {[%emt 0:00:02]} 4. Bg2 {[%emt 0:00:01]} Be7 {[%emt 0:00:01]} 5. d3 {[%emt 0:00:01]} O-O {[%emt 0:00:02]} 6. e4 {[%emt 0:00:00] A25: English Opening vs King's Indian with ...Nc6 but without early d3.} d6 {[%emt 0:00:02]} 7. Nge2 {[%emt 0:00:02]} Bg4 {[%emt 0:00:04]} 8. h3 {[%emt 0:00:01] White is slightly better.} Be6 {[%emt 0:00:01]} 9. O-O {[%emt 0:00:03]} Qd7 {[%emt 0:00:01]} 10. Kh2 {[%emt 0:00:00] [#]} a6 $146 {[%emt 0:00:01]} ({Predecessor:} 10... h6 11. Be3 Kh7 12. a3 Rh8 13. Nd5 Bxd5 14. cxd5 Nd8 15. Rc1 c6 16. dxc6 Nxc6 {1-0 (33) Pritulina,N (1056)-Sevcikova,K Bratislava 2019}) 11. Nd5 {[%emt 0:00:03]} h6 {[%emt 0:00:15]} 12. f4 {[%emt 0:00:03] [#] Strongly threatening Nxf6+.} Na7 $2 {[%emt 0:00:18]} (12... Qd8 $16 {keeps fighting.}) 13. Nxf6+ $18 {[%emt 0:00:14]} Bxf6 {[%emt 0:00:02]} 14. f5 {[%emt 0:00:00]} c6 {[%emt 0:00:12]} 15. fxe6 {[%emt 0:00:02]} fxe6 {[%emt 0:00:01]} 16. Nc3 {[%emt 0:00:09]} Rad8 {[%emt 0:00:08]} 17. Qg4 {[%emt 0:00:14]} Kh7 {[%emt 0:00:09]} 18. Be3 {[%emt 0:00:03]} Nc8 {[%emt 0:00:06]} 19. h4 {[%emt 0:00:17]} Ne7 {[%emt 0:00:02]} 20. Rf2 {[%emt 0:00:05]} b5 {[%emt 0:00:22]} 21. b3 {[%emt 0:00:11]} bxc4 {[%emt 0:00:07]} 22. dxc4 {[%emt 0:00:07]} d5 {[%emt 0:00:25]} 23. Rd1 {[%emt 0:00:33]} d4 {[%emt 0:00:03]} 24. Bc1 {[%emt 0:00:01]} Qd6 {[%emt 0:00:15]} 25. Na4 {[%emt 0:00:06]} c5 {[%emt 0:00:14]} 26. Ba3 {[%emt 0:00:05]} Rc8 {[%emt 0:00:02]} 27. Bh3 {[%emt 0:00:06]} Rc6 {[%emt 0:00:08]} 28. Rdf1 {[%emt 0:00:13]} Ng6 {[%emt 0:00:06]} 29. Qd1 {[%emt 0:00:21]} Re8 {[%emt 0:00:17]} 30. Rxf6 {[%emt 0:00:19]} gxf6 {[%emt 0:00:02]} 31. Rxf6 {[%emt 0:00:00] White threatens Qh5 and mate.} Qe7 {[%emt 0:00:09]} 32. Qf3 {[%emt 0:00:03]} (32. Rf1 $142) 32... Rf8 $2 {[%emt 0:00:04]} (32... Nf4 {was necessary.}) 33. Rxf8 {[%emt 0:00:09]} Nxf8 {[%emt 0:00:00]} 34. h5 {[%emt 0:00:13]} Nd7 {[%emt 0:00:07]} 35. Qg4 {[%emt 0:00:04]} Qg7 {[%emt 0:00:10] Inhibits Qg6+.} 36. Qf3 $2 {[%emt 0:00:08]} (36. Nb2 $18) 36... Nf6 $2 {[%emt 0:00:02][%mdl 8192] [#]} (36... Qe7 $11) 37. Bxe6 $1 {[%emt 0:00:05][%mdl 512]} Qg5 {[%emt 0:00:05]} (37... Kh8 38. Nxc5) 38. Bf5+ {[%emt 0:00:03]} Kg7 {[%emt 0:00:01]} 39. g4 {[%emt 0:00:01]} d3 $2 {[%emt 0:00:05]} (39... Qd2+ 40. Kh3 Qxa2) 40. Qxd3 {[%emt 0:00:05]} Qf4+ {[%emt 0:00:03]} 41. Kh3 $2 {[%emt 0:00:03]} (41. Kg2 $18 Qg5 42. Qd8) 41... Qf2 {[%emt 0:00:00][%mdl 8192]} (41... Rd6 $16 42. Qe2 (42. Qxd6 Qf3+ 43. Kh4 Qf2+ 44. Kh3 Qf3+ 45. Kh4 Qf2+ 46. Kh3 Qf3+ $11) 42... Rd2 43. Nxc5 Rxe2 44. Ne6+ Kf7 45. Nxf4 exf4) 42. Bxc5 {Black did not feel at home in the position after the opening.  Weighted Error Value: White=0.46/Black=0.64} ({And not} 42. Bb2 Rd6 43. Qxd6 Qf3+ 44. Kh4 Qf2+ 45. Kh3 Qf3+ 46. Kh4 Qf2+ 47. Kh3 $11) 1-0

[Event "German-ch Blitz Women 2022"]
[Site "Magdeburg"]
[Date "2022.08.13"]
[Round "13.3"]
[White "Fock, Sana"]
[Black "Falke, Ornella"]
[Result "1-0"]
[ECO "B23"]
[WhiteElo "1807"]
[BlackElo "1912"]
[Annotator "TA"]
[PlyCount "60"]
[EventDate "2022.08.10"]
[EventType "tourn"]
[EventCountry "GER"]
[SourceTitle "playchess.com"]
[Source "ChessBase"]
[SourceQuality "1"]
[TimeControl "180+2"]

{[%evp 9,60,-1,66,52,38,53,46,17,15,12,0,-29,-24,-77,-36,-41,-22,-31,0,-29,0,0,18,-96,-68,-145,-106,-119,-12,-104,-112,-286,-269,-240,-248,-461,-447,-474,-484,-715,-657,-1108,-1102,-1082,-1070,-1104,-1066,-2306,-2381,-29978,-29979,-2785,-2554]} 1. e4 {[%emt 0:00:01]} c5 {[%emt 0:00:00]} 2. Nc3 {[%emt 0:00:01]} Nc6 {[%emt 0:00:02]} 3. f4 {[%emt 0:00:01]} g6 {[%emt 0:00:03]} 4. Nf3 {[%emt 0:00:02]} Bg7 {[%emt 0:00:00]} 5. Bb5 {[%emt 0:00:02]} e6 {[%emt 0:00:02]} (5... Nd4 $11) 6. e5 {[%emt 0:00:06] B23: Closed Sicilian: Lines without g3.} (6. Bxc6 $5 dxc6 7. d3 $14) 6... Nge7 {[%emt 0:00:02]} 7. Ne4 {[%emt 0:00:05]} O-O {[%emt 0:00:13]} 8. O-O {[%emt 0:00:11] White is slightly better.} ({Reject} 8. Nxc5 d6 9. Nd3 Nf5 $11) 8... Qb6 {[%emt 0:00:05] [#]} 9. Be2 $146 {[%emt 0:00:29]} ({Predecessor:} 9. Bxc6 Nxc6 10. Nd6 f6 11. Nc4 Qc7 12. Qe2 fxe5 13. fxe5 b5 14. Nd6 Nxe5 15. Nxb5 {0-1 (26) Sreyas,P (2150)-Akhilbay,I (1746) Tornelo INT 2020}) 9... Nf5 {[%emt 0:00:18][%cal Od7d6]} 10. Kh1 {[%emt 0:00:08]} d5 {[%emt 0:00:04][%cal Bd7d5,Bd5d4,Bd4d3][%mdl 32]} 11. Neg5 {[%emt 0:00:29]} (11. Nf6+ $11 Bxf6 12. exf6) 11... h6 {[%emt 0:00:05]} 12. Nh3 {[%emt 0:00:01]} d4 {[%emt 0:00:12]} 13. c3 {[%emt 0:00:13]} Rd8 {[%emt 0:00:11] [#] White must now prevent ...d3.} 14. Qe1 {[%emt 0:00:25]} d3 {[%emt 0:00:03]} 15. Bd1 {[%emt 0:00:01]} Bd7 {[%emt 0:00:21]} 16. a4 {[%emt 0:00:18]} (16. Nf2 $11 {keeps the balance.}) 16... c4 {[%emt 0:00:04]} 17. Qf2 {[%emt 0:00:16]} ({Better is} 17. Nf2 $15) 17... Bf8 {[%emt 0:00:23]} 18. g4 {[%emt 0:00:09]} Bc5 {[%emt 0:00:06]} (18... Nfe7 $17 {White should prevent ...Na5.} 19. b3 cxb3 20. Qxb6 axb6 21. Bxb3 b5) 19. Qg2 {[%emt 0:00:02]} (19. Qe1 $11) 19... Nfe7 $36 {[%mdl 2048] Black has strong initiative.} 20. f5 $2 {[%emt 0:00:04] [#] Now White is beyond hope.} (20. Nf2 $17) 20... exf5 $19 {[%emt 0:00:06]} 21. gxf5 {[%emt 0:00:01]} Nxf5 {[%emt 0:00:16]} 22. a5 $2 {[%emt 0:00:16]} (22. Nf4 Na5 23. Nxd3) 22... Nxa5 {[%emt 0:00:04]} 23. Nf4 {[%emt 0:00:16][%cal Oe5e6]} Bc6 {[%emt 0:00:19]} 24. Nh5 {[%emt 0:00:02]} (24. Rxa5 $142 Qxa5 25. b4 cxb3 26. Bxb3) 24... Be7 {[%emt 0:00:08]} 25. Nf6+ {[%emt 0:00:04]} Bxf6 {[%emt 0:00:04]} 26. exf6 {[%emt 0:00:01]} Nb3 {[%emt 0:00:19]} 27. Bxb3 {[%emt 0:00:04]} cxb3 {[%emt 0:00:07]} 28. Ra4 {[%emt 0:00:04]} Bxa4 {[%emt 0:00:02]} 29. Ne5 {[%emt 0:00:03]} Bc6 {[%emt 0:00:04]} 30. Nxc6 {[%emt 0:00:03]} Qxc6 {[%emt 0:00:00][%mdl 32768] Weighted Error Value: White=1.18/Black=0.22 (precise) . Loss on time!?} 1-0

[Event "German-ch Blitz Women 2022"]
[Site "Magdeburg"]
[Date "2022.08.13"]
[Round "13.4"]
[White "Schuster, Rebekka"]
[Black "Stangl, Anita"]
[Result "0-1"]
[ECO "C01"]
[WhiteElo "1815"]
[BlackElo "2023"]
[Annotator "NA RC"]
[PlyCount "42"]
[EventDate "2022.08.10"]
[EventType "tourn"]
[EventCountry "GER"]
[SourceTitle "playchess.com"]
[Source "ChessBase"]
[SourceQuality "1"]
[TimeControl "180+2"]

1. e4 {[%emt 0:00:00]} e6 {[%emt 0:00:00]} 2. d4 {[%emt 0:00:01]} d5 {[%emt 0:00:01]} 3. exd5 {[%emt 0:00:01]} exd5 {[%emt 0:00:00]} 4. Bd3 {[%emt 0:00:02]} Nc6 {[%emt 0:00:01]} 5. c3 {[%emt 0:00:04]} Bd6 {[%emt 0:00:02]} 6. Ne2 {[%emt 0:00:05]} Nge7 {[%emt 0:00:01]} 7. O-O {[%emt 0:00:03]} Bg4 {[%emt 0:00:08]} 8. f3 {[%emt 0:00:04]} Bh5 {[%emt 0:00:00]} 9. Bf4 {[%emt 0:00:09]} Bg6 {[%emt 0:00:13]} 10. Bg5 {[%emt 0:00:35]} f6 {[%emt 0:00:04]} 11. Bh4 {[%emt 0:00:01]} Qd7 {[%emt 0:00:04]} 12. Qc2 {[%emt 0:00:27]} O-O-O {[%emt 0:00:13]} 13. b4 {[%emt 0:00:01]} Rde8 {[%emt 0:00:02]} 14. a4 {[%emt 0:00:06]} Nf5 {[%emt 0:00:24]} 15. Bf2 {[%emt 0:00:05]} Ne3 {[%emt 0:00:04]} 16. Bxe3 {[%emt 0:00:12]} Rxe3 {[%emt 0:00:00]} 17. Bxg6 {[%emt 0:00:01]} hxg6 {[%emt 0:00:02]} 18. Ng3 {[%emt 0:00:22]} f5 {[%emt 0:00:14]} 19. Na3 {[%emt 0:00:30]} Qe7 {[%emt 0:00:03]} 20. Nb5 {[%emt 0:00:10]} Bf4 {[%emt 0:00:19]} 21. Qf2 {[%emt 0:00:15]} Qh4 {[%emt 0:00:11]} 0-1

[Event "German-ch Blitz Women 2022"]
[Site "Magdeburg"]
[Date "2022.08.13"]
[Round "13.5"]
[White "Zschischang, Marine"]
[Black "Wulf, Constanze"]
[Result "1-0"]
[ECO "D36"]
[WhiteElo "2083"]
[BlackElo "1835"]
[Annotator "NA RC"]
[PlyCount "55"]
[EventDate "2022.08.10"]
[EventType "tourn"]
[EventCountry "GER"]
[SourceTitle "playchess.com"]
[Source "ChessBase"]
[SourceQuality "1"]
[TimeControl "180+2"]

1. d4 {[%emt 0:00:01]} d5 {[%emt 0:00:00]} 2. c4 {[%emt 0:00:01]} e6 {[%emt 0:00:01]} 3. Nc3 {[%emt 0:00:01]} c6 {[%emt 0:00:01]} 4. cxd5 {[%emt 0:00:02]} exd5 {[%emt 0:00:01]} 5. Qc2 {[%emt 0:00:01]} Nf6 {[%emt 0:00:05]} 6. Bg5 {[%emt 0:00:02]} Nbd7 {[%emt 0:00:03]} 7. Nf3 {[%emt 0:00:03]} Bd6 {[%emt 0:00:06]} 8. e3 {[%emt 0:00:02]} O-O {[%emt 0:00:02]} 9. Bd3 {[%emt 0:00:01]} h6 {[%emt 0:00:03]} 10. Bh4 {[%emt 0:00:01]} Qc7 {[%emt 0:00:05]} 11. Bg3 {[%emt 0:00:05]} Re8 {[%emt 0:00:23]} 12. O-O-O {[%emt 0:00:15]} b5 {[%emt 0:00:46]} 13. Nxb5 {[%emt 0:00:07]} cxb5 {[%emt 0:00:29]} 14. Qxc7 {[%emt 0:00:03]} Bxc7 {[%emt 0:00:01]} 15. Bxc7 {[%emt 0:00:02]} Bb7 {[%emt 0:00:06]} 16. Kb1 {[%emt 0:00:09]} Rac8 {[%emt 0:00:02]} 17. Bg3 {[%emt 0:00:11]} b4 {[%emt 0:00:06]} 18. Rc1 {[%emt 0:00:05]} Ne4 {[%emt 0:00:07]} 19. Bb5 {[%emt 0:00:35]} Red8 {[%emt 0:00:24]} 20. Rxc8 {[%emt 0:00:10]} Bxc8 {[%emt 0:00:01]} 21. Rc1 {[%emt 0:00:02]} Nxg3 {[%emt 0:00:24]} 22. hxg3 {[%emt 0:00:02]} a6 {[%emt 0:00:17]} 23. Rxc8 {[%emt 0:00:20]} Rxc8 {[%emt 0:00:01]} 24. Bxd7 {[%emt 0:00:01]} Rc7 {[%emt 0:00:03]} 25. Bf5 {[%emt 0:00:07]} Kf8 {[%emt 0:00:02]} 26. Bc2 {[%emt 0:00:04]} Ke7 {[%emt 0:00:02]} 27. Bb3 {[%emt 0:00:07]} Kd6 {[%emt 0:00:06]} 28. Ne5 {[%emt 0:00:05]} 1-0

[Event "German-ch Blitz Women 2022"]
[Site "Magdeburg"]
[Date "2022.08.13"]
[Round "13.6"]
[White "Staerk, Elisa"]
[Black "Doll, Rebecca"]
[Result "1-0"]
[ECO "D63"]
[WhiteElo "1947"]
[BlackElo "1933"]
[Annotator "TA"]
[PlyCount "86"]
[EventDate "2022.08.10"]
[EventType "tourn"]
[EventCountry "GER"]
[SourceTitle "playchess.com"]
[Source "ChessBase"]
[SourceQuality "1"]
[TimeControl "180+2"]

{[%evp 21,86,-21,-32,-40,-8,-55,114,118,115,0,0,-39,-20,-142,-143,-136,-132,-166,-92,-94,-87,-94,-95,-85,-91,-89,-91,-167,-17,-28,-17,-20,-18,-16,-16,-32,-7,-10,-4,-7,0,0,0,0,0,0,0,0,0,-3,-3,-3,0,0,0,0,0,-9,0,-83,-5,-9,-11,-87,-90,-164,0]} 1. d4 d5 2. c4 e6 3. Nc3 Be7 4. Nf3 Nf6 5. Bg5 O-O 6. e3 a6 7. Rc1 Nbd7 8. Bd3 dxc4 9. Bxc4 b5 10. Bd3 Bb7 11. O-O c5 {11...c5 scores better than 11...Rc8.} 12. Ne5 {D63: Queen's Gambit Declined: Classical: 7 Rc1.} h6 13. Bh4 {[#]} (13. Nxd7 $11 {is superior.} Nxd7 14. Bxe7 Qxe7 15. Be4 Bxe4 16. Nxe4) 13... Nd5 $146 {[#]} (13... Nxe5 $15 {keeps the upper hand.} 14. dxe5 Nd7 15. Bxe7 Qxe7) ({Predecessor:} 13... cxd4 14. exd4 Rc8 15. Qe2 Nb6 16. Rfd1 Nbd5 17. Bxf6 Nxf6 18. a3 Nd5 19. Ne4 Rxc1 20. Rxc1 Nf4 {0-1 (30) Milevoj,C (1901)-Bulic,J (2243) Buje 2008}) 14. Bxe7 $16 {0x0.0019ef4b088adp-1022s more active pieces. The black rooks are badly placed. White is better.} (14. Nxd7 {is interesting.} Qxd7 15. Bxe7 Qxe7 16. Nxd5 Bxd5 17. Rxc5 Rac8 18. Qc2) 14... Qxe7 15. Nxd7 ({White has to play} 15. Nxd5 $16 Bxd5 16. Nxd7 Qxd7 17. dxc5 (17. Rxc5 Rac8 $16)) 15... Qxd7 $11 16. Nxd5 Qxd5 {[%csl Gb7][%cal Rd5g2] [#]} 17. Qg4 (17. f3 $1 $11) 17... cxd4 $17 ({But not} 17... Qxa2 $6 18. dxc5 Bc6 19. Qe2 $11) 18. exd4 Rac8 19. Rcd1 h5 (19... Qxa2 $19 20. Rd2 Rfd8) 20. Qh3 Rfd8 21. Rfe1 Qg5 22. Re5 Qg4 23. Qxg4 hxg4 24. Be2 (24. Rc5 $17 {is a better defense.}) 24... Rd7 (24... Rc2 $19 {...Bd5 is the strong threat.} 25. Bxg4 Rxb2) 25. Bxg4 $11 Rc4 26. h3 Rcxd4 27. Rxd4 Rxd4 {[%mdl 4096] Endgame KRB-KRB} 28. Re2 Rd1+ 29. Kh2 {[%cal Oe2e6]} Rb1 30. Kg3 g6 31. Rc2 Bd5 32. a3 Bc4 33. Rd2 Kf8 34. h4 Ke7 35. h5 gxh5 36. Bxh5 a5 37. Bf3 b4 38. axb4 axb4 39. Rc2 Bb5 40. Rc5 (40. Be4 $11 {remains equal.}) 40... Bf1 (40... Bd3 $17 41. Rc7+ Kf6) 41. Rc7+ Kf6 42. Bh5 (42. Rc2 $1 $11) 42... Rxb2 $17 43. Bxf7 (43. Rxf7+ $17 Ke5 44. Rd7) 43... Re2 $2 {[%mdl 32768] And White is the lucky defender.  Weighted Error Value: White=0.30/Black=0.31. Loss on time!?} (43... b3 $19 44. Bg8 Rc2) 1-0

[Event "German-ch Blitz Women 2022"]
[Site "Magdeburg"]
[Date "2022.08.13"]
[Round "13.7"]
[White "Melamed, Tatjana"]
[Black "Kunze, Kerstin"]
[Result "1-0"]
[ECO "C78"]
[WhiteElo "2380"]
[BlackElo "2020"]
[Annotator "TA"]
[PlyCount "47"]
[EventDate "2022.08.10"]
[EventType "tourn"]
[EventCountry "GER"]
[SourceTitle "playchess.com"]
[Source "ChessBase"]
[SourceQuality "1"]
[TimeControl "180+2"]

{[%evp 15,47,16,35,12,37,0,7,-1,34,-20,7,0,70,60,92,79,110,125,104,108,283,178,517,534,503,535,1105,1101,29979,8373,29981,5650,4308,2789]} 1. e4 {[%emt 0:00:01]} e5 {[%emt 0:00:01]} 2. Nf3 {[%emt 0:00:01]} Nc6 {[%emt 0:00:01]} 3. Bb5 {[%emt 0:00:02][%cal Bf1b5,Bb5a4,Ba4b3][%mdl 32]} a6 {[%emt 0:00:01]} 4. Ba4 {[%emt 0:00:01]} Nf6 {[%emt 0:00:01]} 5. O-O {[%emt 0:00:01]} b5 {[%emt 0:00:01]} 6. Bb3 {[%emt 0:00:01]} Be7 {[%emt 0:00:01]} 7. d3 {[%emt 0:00:03]} O-O {[%emt 0:00:03]} 8. a4 {[%emt 0:00:01]} Bb7 {[%emt 0:00:05]} 9. Nbd2 {[%emt 0:00:10] C84: Closed Ruy Lopez: Unusual White 6th moves.} d5 {[%emt 0:00:28]} 10. Re1 {[%emt 0:00:03]} dxe4 {[%emt 0:00:09]} 11. dxe4 {[%emt 0:00:02] [#] The position is equal.} Bc5 $146 {[%emt 0:00:07]} ({Predecessor:} 11... Qd7 12. c3 Rad8 13. Qe2 Qd3 14. Qxd3 Rxd3 15. Bc2 Rd7 16. Nf1 Rfd8 17. Ne3 Bd6 {1-0 (36) Brnusak,A (1737)-Cuker,O (1390) Liptovsky Mikulas 2016}) 12. h3 {[%emt 0:00:06]} (12. c3 $14) 12... Qe7 {[%emt 0:00:11]} 13. Qe2 {[%emt 0:00:07]} bxa4 {[%emt 0:00:46]} ({Black should play} 13... Rfb8 $11) 14. Rxa4 $14 {[%emt 0:00:07]} Nh5 {[%emt 0:00:08]} 15. Nf1 {[%emt 0:00:04]} Nf4 {[%emt 0:00:09]} 16. Bxf4 {[%emt 0:00:05]} exf4 {[%emt 0:00:00]} 17. e5 {[%emt 0:00:17]} g5 $2 {[%emt 0:00:22]} (17... Nb4 $16) 18. N1d2 {[%emt 0:00:12] Hoping for Bd5.} Nb4 $2 {[%emt 0:00:15]} (18... Rad8 19. Ne4 Nxe5) 19. Ne4 $18 {[%emt 0:00:08]} Bxe4 {[%emt 0:00:03]} 20. Qxe4 {[%emt 0:00:01] [#] Qf5 is the strong threat.} c6 {[%emt 0:00:23]} 21. Qf5 {[%emt 0:00:13]} h6 {[%emt 0:00:07]} 22. Qg6+ {[%emt 0:00:03]} Kh8 {[%emt 0:00:09]} 23. Qxh6+ {[%emt 0:00:01]} Kg8 {[%emt 0:00:01]} 24. Nxg5 {[%emt 0:00:08] White took control after the opening.  Weighted Error Value: White=0.27 (precise) /Black=0.96} 1-0

[Event "German-ch Blitz Women 2022"]
[Site "Magdeburg"]
[Date "2022.08.13"]
[Round "13.8"]
[White "Schulze, Lara"]
[Black "Rath, Alina"]
[Result "0-1"]
[ECO "B30"]
[WhiteElo "2292"]
[BlackElo "2062"]
[Annotator "TA"]
[PlyCount "137"]
[EventDate "2022.08.10"]
[EventType "tourn"]
[EventCountry "GER"]
[SourceTitle "playchess.com"]
[Source "ChessBase"]
[SourceQuality "1"]
[TimeControl "180+2"]

{[%evp 9,137,19,39,18,21,18,11,5,6,4,10,15,24,0,6,0,0,-35,-36,-115,-57,-331,-46,-45,-43,-139,-132,-156,-59,-113,-113,-113,-111,-106,-89,-88,-58,-69,-63,-58,-17,-83,-24,-71,-70,-68,-65,-69,-58,-94,-67,-56,0,-73,0,-64,0,-26,62,61,68,-74,101,107,90,-33,-34,-19,0,0,0,0,0,-23,-28,-30,-2,-8,0,0,0,-35,-48,-74,-35,-35,178,161,161,146,292,204,198,139,281,110,105,0,29,0,0,-913,-861,-1002,-846,-960,-912,-860,-915,-883,-810,-12837,-12838,-2132,0,0,0,0,0,0,12845,12846,12846,12847,12847,12847,12849,12849,12850,0]} 1. e4 {[%emt 0:00:01]} c5 {[%emt 0:00:01]} 2. Nf3 {[%emt 0:00:01]} Nc6 {[%emt 0:00:00]} 3. Bb5 {[%emt 0:00:01]} a6 {[%emt 0:00:02]} 4. Bxc6 {[%emt 0:00:03]} dxc6 {[%emt 0:00:01]} 5. h3 {[%emt 0:00:02]} Qc7 {[%emt 0:00:01]} 6. d3 {[%emt 0:00:03] B30: Sicilian: 2...Nc6 3 Bb5, lines without ...g6.} e5 {[%emt 0:00:01]} 7. O-O {[%emt 0:00:04]} Ne7 {[%emt 0:00:01]} 8. Nbd2 {[%emt 0:00:03] The position is equal.} Ng6 {[%emt 0:00:01]} 9. a4 {[%emt 0:00:06]} a5 {[%emt 0:00:01]} 10. Nc4 {[%emt 0:00:04]} f6 {[%emt 0:00:01]} 11. Be3 {[%emt 0:00:06] [#]} Be7 $146 {[%emt 0:00:03]} ({Predecessor:} 11... Be6 12. Nfd2 b6 13. c3 Be7 14. b4 axb4 15. cxb4 b5 16. axb5 Rxa1 17. Qxa1 cxb5 {1-0 (40) Favilli,E (2116)-Ventura,S (2190) Lignano Sabbiadoro 2018}) 12. c3 {[%emt 0:00:09]} Be6 {[%emt 0:00:05]} 13. Qb3 {[%emt 0:00:06]} O-O {[%emt 0:00:11][%cal Ob7b5] White must now prevent ...b5!} 14. Nfd2 {[%emt 0:00:26]} (14. Qc2 $15) 14... Rfb8 {[%emt 0:00:02]} (14... Rfd8 $17 15. Qc2 b5) 15. Qb6 $2 {[%emt 0:00:05][%mdl 8192]} (15. Qc2 $1 $15) 15... Qxb6 $2 {[%emt 0:00:12]} ({Black should play} 15... Qd7 $19 16. Nb3 Bxh3 $1) 16. Nxb6 $15 {[%emt 0:00:02] Pair of Knights!} Ra6 {[%emt 0:00:02]} 17. Nbc4 {[%emt 0:00:05]} (17. Ndc4 $15) 17... Rd8 $17 {[%emt 0:00:05]} 18. Nb3 {[%emt 0:00:13]} b6 {[%emt 0:00:22]} (18... Rxd3 $17 19. Nbd2 Bd8) 19. Rfd1 {[%emt 0:00:06]} (19. Nc1 $1 $15) 19... Nf4 {[%emt 0:00:15]} 20. Bxf4 {[%emt 0:00:05]} exf4 {[%emt 0:00:01]} 21. f3 {[%emt 0:00:24]} g5 {[%emt 0:00:01]} 22. Kf2 {[%emt 0:00:10]} Kf7 {[%emt 0:00:02][%cal Od8d3]} 23. Ke2 $1 {[%emt 0:00:01]} Rd7 {[%emt 0:00:01]} 24. Nbd2 {[%emt 0:00:17]} Bd8 {[%emt 0:00:05]} 25. b3 {[%emt 0:00:06]} (25. e5 $1 $11 {keeps the balance.}) 25... Ke7 {[%emt 0:00:11]} (25... Bc7 $17) 26. Na3 {[%emt 0:00:13]} (26. e5 $11) 26... Bc7 {[%emt 0:00:02]} 27. Ndc4 {[%emt 0:00:03]} Ra8 {[%emt 0:00:03]} 28. d4 {[%emt 0:00:11]} cxd4 {[%emt 0:00:10]} 29. cxd4 {[%emt 0:00:06]} Rb8 {[%emt 0:00:02]} 30. Nc2 {[%emt 0:00:21]} Ra8 {[%emt 0:00:04]} 31. N2a3 {[%emt 0:00:07]} Rb8 {[%emt 0:00:01]} 32. Nc2 {[%emt 0:00:02]} Ra8 {[%emt 0:00:45]} (32... f5 $15) 33. Rd3 {[%emt 0:00:01]} b5 {[%emt 0:00:02]} (33... Rad8 $11) 34. axb5 $14 {[%emt 0:00:02]} cxb5 {[%emt 0:00:00]} 35. Nd2 {[%emt 0:00:01]} (35. N4a3 $1 $14 {was forced to keep a grip.}) 35... Bb6 $2 {[%emt 0:00:20] Black is more active.} (35... Bd6 $17 {and life is bright.}) 36. d5 $16 {[%emt 0:00:01]} Bf7 {[%emt 0:00:01]} 37. Nd4 {[%emt 0:00:04]} (37. Na3 $1 $16) 37... Bxd4 $15 {[%emt 0:00:05]} 38. Rxd4 {[%emt 0:00:01]} Kd6 {[%emt 0:00:05]} 39. b4 {[%emt 0:00:06]} Rda7 {[%emt 0:00:05]} 40. bxa5 {[%emt 0:00:08]} Rxa5 {[%emt 0:00:01]} 41. Rc1 {[%emt 0:00:02]} Be8 {[%emt 0:00:04] Against Rc6+} 42. Nb3 {[%emt 0:00:03]} Ra2+ {[%emt 0:00:01]} 43. Rd2 $1 {[%emt 0:00:01]} R8a3 {[%emt 0:00:10]} 44. Rxa2 {[%emt 0:00:02]} Rxa2+ $11 {[%emt 0:00:01][%mdl 4096] Endgame KRB-KRN} 45. Nd2 {[%emt 0:00:02]} (45. Kd3 $5 {[%cal Rc1c8]}) 45... b4 {[%emt 0:00:06]} 46. Rb1 {[%emt 0:00:01]} Kc5 {[%emt 0:00:01]} 47. Rc1+ {[%emt 0:00:04]} Kd4 $2 {[%emt 0:00:09]} (47... Kb6 $15 {keeps the upper hand.}) 48. Rc4+ $18 {[%emt 0:00:03]} Ke5 {[%emt 0:00:01]} 49. Rxb4 {[%emt 0:00:00]} h5 {[%emt 0:00:04]} (49... f5 $16 50. Kd3 Ra3+ 51. Kc2 Ra2+ 52. Kc3 Ra3+ 53. Kb2 Ra7) 50. Kd3 {[%emt 0:00:01][%cal Rd2c4]} Ra3+ {[%emt 0:00:01] [#]} 51. Kc2 {[%emt 0:00:02]} (51. Kc4 $1 $18 {[%cal Rc4c5]}) 51... Ra1 {[%emt 0:00:02]} (51... Kd6 $16 52. Rb6+ Kc5) 52. Nc4+ $2 {[%emt 0:00:02]} (52. Rb7 $18 {and White stays clearly on top. Threatens to win with Re7+.} Ra2+ 53. Kc3 Ra3+ 54. Kb2) 52... Kd4 $16 {[%emt 0:00:02]} 53. Nd2+ {[%emt 0:00:04]} ({Better is} 53. Kb3 $16 {And now Nd6+ would win.} Rb1+ 54. Nb2+ (54. Ka3 Rxb4 55. Kxb4 f5 $16) 54... Kc5 55. Rb7) 53... Ke3 {[%emt 0:00:05]} 54. Rb3+ {[%emt 0:00:02]} Ke2 {[%emt 0:00:02]} 55. Nc4 $2 {[%emt 0:00:03][%mdl 8192]} (55. Kb2 $11 Rg1 56. Nc4) 55... Ba4 $19 {[%emt 0:00:02]} 56. d6 {[%emt 0:00:01]} Bxb3+ {[%emt 0:00:02]} 57. Kxb3 {[%emt 0:00:01] KR-KN} Rd1 {[%emt 0:00:02]} 58. Kb4 {[%emt 0:00:02]} Kf2 {[%emt 0:00:03]} 59. Kc5 {[%emt 0:00:01]} Kxg2 {[%emt 0:00:05]} 60. Nb6 {[%emt 0:00:02] [#]} Rxd6 $3 {[%emt 0:00:06][%mdl 512]} 61. Kxd6 {[%emt 0:00:01]} Kxh3 $2 {[%emt 0:00:02] KN-KP} ({Black should try} 61... Kxf3 $19 62. Nd5 Kxe4) 62. Nd5 $11 {[%emt 0:00:04]} Kg3 {[%emt 0:00:02] aiming for ...h4.} 63. Nxf6 {[%emt 0:00:02]} Kxf3 {[%emt 0:00:03] Strongly threatening ...g4. KN-K3P} 64. e5 {[%emt 0:00:00] e6 is the strong threat.} Kg2 $2 {[%emt 0:00:03][%mdl 8192]} (64... g4 $11 65. e6 g3) 65. e6 $18 {[%emt 0:00:01] White is clearly winning.} f3 {[%emt 0:00:00]} 66. Ne4 {[%emt 0:00:02]} g4 {[%emt 0:00:04]} 67. e7 {[%emt 0:00:01]} g3 {[%emt 0:00:02]} 68. e8=Q {[%emt 0:00:05]} f2 {[%emt 0:00:01]} 69. Nxg3 $2 {[%mdl 32768] Never resign too early!  Weighted Error Value: White=0.62/Black=0.48. Loss on time!?} 0-1